bitfinex/quotes_BTCUSD_20250808
["timestamp","ask_amount","ask_price","bid_price","bid_amount"]
[1754625479844,0.21872284,116770.0,116760.0,0.62458605]
[1754625480876,0.21872284,116770.0,116760.0,0.64834605]
[1754625481520,0.21872284,116770.0,116760.0,0.62458605]
[1754625482169,0.21656284,116770.0,116760.0,0.62458605]
[1754625482384,0.19180284,116770.0,116760.0,0.64834605]
[1754625482793,0.19180284,116770.0,116760.0,0.33142153]
[1754625482994,0.19180284,116770.0,116760.0,0.64834605]
[1754625483230,0.21485284,116770.0,116760.0,0.64834605]
[1754625487215,0.21485284,116770.0,116760.0,0.64830605]
[1754625489043,0.21485284,116770.0,116760.0,0.33138153]
[1754625489221,0.21485284,116770.0,116760.0,0.16009]
[1754625489368,0.21485284,116770.0,116760.0,0.13633]
[1754625489787,0.21701284,116770.0,116760.0,0.13633]
[1754625490196,0.21701284,116770.0,116760.0,0.13316]
[1754625490631,0.21701284,116770.0,116760.0,0.62137605]
[1754625490836,0.21701284,116770.0,116760.0,0.62454605]
[1754625491039,0.21701284,116770.0,116760.0,0.64830605]
[1754625491838,0.21485284,116770.0,116760.0,0.64830605]
[1754625492524,0.21485284,116770.0,116760.0,0.33138153]
[1754625492796,0.21485284,116770.0,116760.0,0.64830605]
[1754625500095,0.21485284,116770.0,116760.0,0.33138153]
[1754625500337,0.21485284,116770.0,116760.0,0.64830605]
[1754625504762,0.21485284,116770.0,116760.0,0.33138153]
[1754625504997,0.21485284,116770.0,116760.0,0.64830605]
[1754625507344,0.19180284,116770.0,116760.0,0.33138153]
[1754625507534,0.19180284,116770.0,116760.0,0.64830605]
[1754625507843,0.19180284,116770.0,116760.0,0.33138153]
[1754625508357,0.19180284,116770.0,116760.0,0.64830605]
[1754625509219,0.21496284,116770.0,116760.0,0.64830605]
[1754625509771,0.21496284,116770.0,116760.0,0.33138153]
[1754625509975,0.21496284,116770.0,116760.0,0.64830605]
[1754625510384,0.21496284,116770.0,116760.0,0.33138153]
[1754625510529,0.21496284,116770.0,116760.0,0.64830605]
[1754625511341,0.19180284,116770.0,116760.0,0.64830605]
[1754625511822,0.21496284,116770.0,116760.0,0.64830605]
[1754625515449,0.21496284,116770.0,116760.0,0.33138153]
[1754625515750,0.21496284,116770.0,116760.0,0.64830605]
[1754625516857,0.21496284,116770.0,116760.0,0.33138153]
[1754625517133,0.21496284,116770.0,116760.0,0.64830605]
[1754625518073,0.02052598,116770.0,116760.0,0.96523057]
[1754625518278,0.02052598,116770.0,116760.0,0.99094057]
[1754625519565,0.02052598,116770.0,116760.0,0.67401605]
[1754625519915,0.02052598,116770.0,116760.0,0.65025605]
[1754625519916,0.21698284,116770.0,116760.0,0.65025605]
[1754625520116,0.21698284,116770.0,116760.0,0.64708605]
[1754625520338,0.04570598,116770.0,116760.0,0.67410605]
[1754625520553,0.04368598,116770.0,116760.0,0.67410605]
[1754625520991,0.02052598,116770.0,116760.0,0.67410605]
[1754625521679,0.19180284,116770.0,116760.0,0.67410605]
[1754625522063,0.02052598,116770.0,116760.0,0.67410605]
[1754625523343,0.19180284,116770.0,116760.0,0.67410605]
[1754625524731,0.19180284,116770.0,116760.0,0.35718153]
[1754625524981,0.19180284,116770.0,116760.0,0.67410605]
[1754625525832,0.21540284,116770.0,116760.0,0.67410605]
[1754625529128,0.21540284,116770.0,116760.0,0.35718153]
[1754625529245,0.21540284,116770.0,116760.0,0.67410605]
[1754625529855,0.21540284,116770.0,116760.0,0.67260605]
[1754625531693,0.21747284,116770.0,116760.0,0.35243153]
[1754625531937,0.21747284,116770.0,116760.0,0.64558605]
[1754625532154,0.22064284,116770.0,116760.0,0.64558605]
[1754625536303,0.22064284,116770.0,116760.0,0.32866153]
[1754625536503,0.22064284,116770.0,116760.0,0.64558605]
[1754625538361,0.21747284,116770.0,116760.0,0.67023605]
[1754625540462,0.02052598,116770.0,116760.0,0.67023605]
[1754625540685,0.19180284,116770.0,116760.0,0.67340605]
[1754625542134,0.19180284,116770.0,116760.0,0.35648153]
[1754625542326,0.21540284,116770.0,116760.0,0.35331153]
[1754625542502,0.21540284,116770.0,116760.0,0.67023605]
[1754625543006,0.21540284,116770.0,116760.0,0.35331153]
[1754625543426,0.21540284,116770.0,116760.0,0.67023605]
[1754625543643,0.21747284,116770.0,116760.0,0.64558605]
[1754625543848,0.21747284,116770.0,116760.0,0.19754153]
[1754625544055,0.21747284,116770.0,116760.0,0.32946153]
[1754625544262,0.21747284,116770.0,116760.0,0.64638605]
[1754625544406,0.21747284,116770.0,116760.0,0.67103605]
[1754625544607,0.21747284,116770.0,116760.0,0.35411153]
[1754625544814,0.21747284,116770.0,116760.0,0.32946153]
[1754625545013,0.21747284,116770.0,116760.0,0.64638605]
[1754625546415,0.21747284,116770.0,116760.0,0.32946153]
[1754625546556,0.22064284,116770.0,116760.0,0.64638605]
[1754625547346,0.22064284,116770.0,116760.0,0.32946153]
[1754625547593,0.00307696,116770.0,116760.0,0.35728153]
[1754625547806,0.00307696,116770.0,116760.0,0.99113057]
[1754625548848,0.00307696,116770.0,116760.0,0.35728153]
[1754625549087,0.00307696,116770.0,116760.0,1.14113057]
[1754625549493,0.00307696,116770.0,116760.0,1.14369057]
[1754625550629,0.00307696,116770.0,116760.0,1.23055268]
[1754625551258,0.00307696,116770.0,116760.0,1.49245268]
[1754625551460,0.00307696,116770.0,116760.0,0.85860364]
[1754625551599,0.00307696,116770.0,116760.0,1.49245268]
[1754625553341,0.00307696,116770.0,116760.0,0.85860364]
[1754625553509,0.00307696,116770.0,116760.0,1.49245268]
[1754625554300,0.00307696,116770.0,116760.0,0.85860364]
[1754625554481,0.00307696,116770.0,116760.0,1.49245268]
[1754625555142,0.00307696,116770.0,116760.0,0.85860364]
[1754625555288,0.00307696,116770.0,116760.0,1.49245268]
[1754625559686,0.17435382,116770.0,116760.0,1.35797268]
[1754625559899,0.20364382,116770.0,116760.0,0.99738816]
[1754625561324,0.03236696,116770.0,116760.0,0.99738816]
[1754625561835,0.02939696,116770.0,116760.0,0.99738816]
[1754625562076,0.02939696,116770.0,116760.0,1.02141816]
[1754625562288,0.02939696,116770.0,116760.0,1.33834268]
[1754625562495,0.00307696,116770.0,116760.0,1.33834268]
[1754625562702,0.00307696,116770.0,116760.0,1.34138268]
[1754625563084,0.00307696,116770.0,116760.0,1.07948268]
[1754625564120,0.00307696,116770.0,116760.0,0.44563364]
[1754625564296,0.00307696,116770.0,116760.0,1.07948268]
[1754625565175,0.00307696,116770.0,116760.0,0.44563364]
[1754625565375,0.00307696,116770.0,116760.0,1.07948268]
[1754625565933,0.19861382,116770.0,116760.0,0.75951816]
[1754625566139,0.20364382,116770.0,116760.0,0.73548816]
[1754625566360,0.03236696,116770.0,116760.0,0.73548816]
[1754625567202,0.02939696,116770.0,116760.0,0.73548816]
[1754625567839,0.02939696,116770.0,116760.0,0.75951816]
[1754625568591,0.02939696,116770.0,116760.0,1.07644268]
[1754625568891,0.02733696,116770.0,116760.0,1.07644268]
[1754625569823,0.02733696,116770.0,116760.0,0.75951816]
[1754625570381,0.02939696,116770.0,116760.0,0.75951816]
[1754625576437,0.02939696,116770.0,116760.0,0.73548816]
[1754625576670,0.03236696,116770.0,116760.0,0.73548816]
[1754625577141,0.02939696,116770.0,116760.0,0.75951816]
[1754625578058,0.02939696,116770.0,116760.0,1.07644268]
[1754625578972,0.00307696,116770.0,116760.0,1.07644268]
[1754625579852,0.00307696,116770.0,116760.0,1.07948268]
[1754625583352,0.00307696,116770.0,116760.0,0.44563364]
[1754625583551,0.00307696,116770.0,116760.0,1.07948268]
[1754625583960,0.00307696,116770.0,116760.0,0.44563364]
[1754625584117,0.00307696,116770.0,116760.0,1.07948268]
[1754625587909,0.00307696,116770.0,116760.0,0.44563364]
[1754625588110,0.00307696,116770.0,116760.0,1.07948268]
[1754625591795,0.00307696,116770.0,116760.0,0.44563364]
[1754625591997,0.00307696,116770.0,116760.0,1.07948268]
[1754625592577,0.00307696,116770.0,116760.0,0.44563364]
[1754625592924,0.00307696,116770.0,116760.0,1.07948268]
[1754625593714,0.00307696,116770.0,116760.0,1.07644268]
[1754625593906,0.02562696,116770.0,116760.0,1.07644268]
[1754625596419,0.02562696,116770.0,116760.0,0.44259364]
[1754625596625,0.02562696,116770.0,116760.0,1.07644268]
[1754625597422,0.02776696,116770.0,116760.0,1.05241268]
[1754625597633,0.03090696,116770.0,116760.0,0.73548816]
[1754625600477,0.03090696,116770.0,116760.0,0.73398816]
[1754625600849,0.20218382,116770.0,116760.0,0.41706364]
[1754625601292,0.21963284,116770.0,116760.0,0.33024153]
[1754625601507,0.21963284,116770.0,116760.0,0.64716605]
[1754625601891,0.53655736,116770.0,116760.0,0.02571]
[1754625602095,0.53655736,116770.0,116760.0,0.13336]
[1754625602786,0.62335161,116770.0,116760.0,0.13336]
[1754625603370,0.30642709,116770.0,116760.0,0.13336]
[1754625603582,0.21963284,116770.0,116760.0,0.13336]
[1754625604359,0.21963284,116770.0,116760.0,0.159072]
[1754625605210,0.21963284,116770.0,116760.0,0.13352]
[1754625605444,0.18874055,116760.0,116750.0,0.1970049]
[1754625605579,0.21657055,116760.0,116750.0,0.73431153]
[1754625606659,0.28045263,116760.0,116750.0,0.41738701]
[1754625606860,0.28045263,116760.0,116750.0,0.60079153]
[1754625607056,0.28045263,116760.0,116750.0,0.73423153]
[1754625607707,0.28045263,116760.0,116750.0,0.73627153]
[1754625607884,0.28145263,116760.0,116750.0,0.73627153]
[1754625608085,0.28345263,116760.0,116750.0,0.41934701]
[1754625608267,0.28345263,116760.0,116750.0,0.73627153]
[1754625608913,0.28345263,116760.0,116750.0,0.41934701]
[1754625609046,0.28345263,116760.0,116750.0,0.73627153]
[1754625609249,0.28345263,116760.0,116750.0,0.73623153]
[1754625609448,0.28031263,116760.0,116750.0,0.3324449]
[1754625609693,0.28345263,116760.0,116750.0,0.64732942]
[1754625610049,0.28345263,116760.0,116750.0,0.51392942]
[1754625610485,0.28345263,116760.0,116750.0,0.64728942]
[1754625610968,0.28345263,116760.0,116750.0,0.64932942]
[1754625611964,0.28345263,116760.0,116750.0,0.3324049]
[1754625612175,0.28345263,116760.0,116750.0,0.64932942]
[1754625612547,0.1090211,116760.0,116750.0,0.67227942]
[1754625613132,0.28031263,116760.0,116750.0,0.67227942]
[1754625613589,0.1090211,116760.0,116750.0,0.67227942]
[1754625614827,0.28031263,116760.0,116750.0,0.3553549]
[1754625615001,0.28031263,116760.0,116750.0,0.67227942]
[1754625615413,0.1090211,116760.0,116750.0,0.67227942]
[1754625616934,0.1068811,116760.0,116750.0,0.67227942]
[1754625617827,0.1068811,116760.0,116750.0,0.3553549]
[1754625617979,0.1068811,116760.0,116750.0,0.67227942]
[1754625620662,0.0843311,116760.0,116750.0,0.67539942]
[1754625623129,0.0843311,116760.0,116750.0,0.3584749]
[1754625623334,0.0843311,116760.0,116750.0,0.67539942]
[1754625624709,0.1080711,116760.0,116750.0,0.67539942]
[1754625627130,0.1070711,116760.0,116750.0,0.67539942]
[1754625627313,0.1070711,116760.0,116750.0,0.67227942]
[1754625627517,0.1050711,116760.0,116750.0,0.67227942]
[1754625627692,0.27636263,116760.0,116750.0,0.67327942]
[1754625628481,0.27636263,116760.0,116750.0,0.67527942]
[1754625629974,0.27636263,116760.0,116750.0,0.3583549]
[1754625630207,0.27636263,116760.0,116750.0,0.67527942]
[1754625630387,0.27636263,116760.0,116750.0,0.3583549]
[1754625630611,0.27636263,116760.0,116750.0,0.67527942]
[1754625630996,0.27636263,116760.0,116750.0,0.3583549]
[1754625631195,0.27636263,116760.0,116750.0,0.67527942]
[1754625634361,0.0813311,116760.0,116750.0,0.67527942]
[1754625634484,0.0813311,116760.0,116750.0,0.67839942]
[1754625634683,0.25262263,116760.0,116750.0,0.67839942]
[1754625634927,0.0813311,116760.0,116750.0,0.67839942]
[1754625636044,0.0813311,116760.0,116750.0,0.3614749]
[1754625636228,0.0813311,116760.0,116750.0,0.67839942]
[1754625636659,0.0813311,116760.0,116750.0,0.3614749]
[1754625636861,0.0813311,116760.0,116750.0,0.67839942]
[1754625639250,0.06388208,116760.0,116750.0,1.08218605]
[1754625640094,0.06388208,116760.0,116750.0,1.34408605]
[1754625640563,0.06388208,116760.0,116750.0,0.71023701]
[1754625640798,0.06388208,116760.0,116750.0,1.34408605]
[1754625641676,0.06388208,116760.0,116750.0,1.08218605]
[1754625647773,0.06388208,116760.0,116750.0,0.44833701]
[1754625648218,0.06388208,116760.0,116750.0,0.76526153]
[1754625649115,0.06388208,116760.0,116750.0,0.44833701]
[1754625649317,0.06388208,116760.0,116750.0,0.76526153]
[1754625649946,0.06388208,116760.0,116750.0,0.63190153]
[1754625650149,0.08860208,116760.0,116750.0,0.73999153]
[1754625650360,0.08860208,116760.0,116750.0,0.60379153]
[1754625650361,0.09165208,116760.0,116750.0,0.60379153]
[1754625650572,0.09165208,116760.0,116750.0,0.73803153]
[1754625651656,0.09165208,116760.0,116750.0,0.42110701]
[1754625651907,0.09165208,116760.0,116750.0,0.73803153]
[1754625652842,0.09165208,116760.0,116750.0,0.93803153]
[1754625655506,0.09165208,116760.0,116750.0,0.94009153]
[1754625656281,0.09165208,116760.0,116750.0,0.62316701]
[1754625656489,0.09165208,116760.0,116750.0,0.94009153]
[1754625656723,0.09165208,116760.0,116750.0,0.62316701]
[1754625656905,0.09165208,116760.0,116750.0,0.94009153]
[1754625658421,0.09165208,116760.0,116750.0,0.73803153]
[1754625658634,0.59731715,116760.0,116750.0,0.42114701]
[1754625658772,0.28039263,116760.0,116750.0,0.42114701]
[1754625658981,0.28039263,116760.0,116750.0,0.73807153]
[1754625660232,0.1091011,116760.0,116750.0,0.73807153]
[1754625660641,0.28039263,116760.0,116750.0,0.73807153]
[1754625662544,0.28039263,116760.0,116750.0,0.2000049]
[1754625662760,0.28039263,116760.0,116750.0,0.3343249]
[1754625662969,0.28039263,116760.0,116750.0,0.65124942]
[1754625664085,0.28039263,116760.0,116750.0,0.3343249]
[1754625664288,0.28039263,116760.0,116750.0,0.65124942]
[1754625665044,0.1091011,116760.0,116750.0,0.65124942]
[1754625665259,0.1060511,116760.0,116750.0,0.3594649]
[1754625665468,0.1060511,116760.0,116750.0,0.67638942]
[1754625667243,0.1040211,116760.0,116750.0,0.67638942]
[1754625669833,0.1040211,116760.0,116750.0,0.3594649]
[1754625670036,0.1040211,116760.0,116750.0,0.67638942]
[1754625670683,0.1040211,116760.0,116750.0,0.3594649]
[1754625670879,0.1040211,116760.0,116750.0,0.67638942]
[1754625671086,0.27531263,116760.0,116750.0,0.67638942]
[1754625671349,0.1040211,116760.0,116750.0,0.67638942]
[1754625671757,0.27734263,116760.0,116750.0,0.65330942]
[1754625672488,0.28039263,116760.0,116750.0,0.65330942]
[1754625672691,0.28039263,116760.0,116750.0,0.3363849]
[1754625672896,0.28039263,116760.0,116750.0,0.65330942]
[1754625674318,0.1091011,116760.0,116750.0,0.65330942]
[1754625674907,0.28039263,116760.0,116750.0,0.65330942]
[1754625675627,0.1091011,116760.0,116750.0,0.65330942]
[1754625676423,0.28039263,116760.0,116750.0,0.65330942]
[1754625676721,0.28039263,116760.0,116750.0,0.3363849]
[1754625677094,0.28039263,116760.0,116750.0,0.65330942]
[1754625678061,0.1091011,116760.0,116750.0,0.65330942]
[1754625678654,0.1060511,116760.0,116750.0,0.65330942]
[1754625679004,0.1060511,116760.0,116750.0,0.67749942]
[1754625680113,0.27734263,116760.0,116750.0,0.67749942]
[1754625682549,0.27734263,116760.0,116750.0,0.3605749]
[1754625682779,0.27734263,116760.0,116750.0,0.65330942]
[1754625683473,0.28042263,116760.0,116750.0,0.3363849]
[1754625683694,0.28042263,116760.0,116750.0,0.65330942]
[1754625685620,0.28042263,116760.0,116750.0,0.65354942]
[1754625686762,0.28042263,116760.0,116750.0,0.2020782]
[1754625686907,0.28042263,116760.0,116750.0,0.65348272]
[1754625688472,0.28042263,116760.0,116750.0,0.3365582]
[1754625688681,0.28042263,116760.0,116750.0,0.65348272]
[1754625688977,0.28042263,116760.0,116750.0,0.3365582]
[1754625689203,0.28042263,116760.0,116750.0,0.65348272]
[1754625689765,0.28042263,116760.0,116750.0,0.3365582]
[1754625690170,0.28042263,116760.0,116750.0,0.65348272]
[1754625691141,0.30849557,116760.0,116750.0,0.65348272]
[1754625691282,0.30323821,116760.0,116750.0,0.64822536]
[1754625691632,0.30221174,116760.0,116750.0,0.60092298]
[1754625691887,0.33502609,116760.0,116750.0,0.59519422]
[1754625694800,0.33502609,116760.0,116750.0,0.2782697]
[1754625694969,0.33502609,116760.0,116750.0,0.59519422]
[1754625695167,0.33502609,116760.0,116750.0,0.2782697]
[1754625695350,0.33502609,116760.0,116750.0,0.59519422]
[1754625696582,0.33502609,116760.0,116750.0,0.2782697]
[1754625696744,0.33502609,116760.0,116750.0,0.1069635]
[1754625696945,0.33502609,116760.0,116750.0,0.59519422]
[1754625697620,0.33502609,116760.0,116750.0,0.42388802]
[1754625698684,0.33502609,116760.0,116750.0,0.1069635]
[1754625698894,0.1713062,116750.0,116740.0,2.33397346]
[1754625699029,0.19087522,116750.0,116740.0,2.39512457]
[1754625699228,0.21834522,116750.0,116740.0,2.52960457]
[1754625699626,0.21834522,116750.0,116740.0,2.84652909]
[1754625699850,0.21834522,116750.0,116740.0,2.22380369]
[1754625700045,0.21834522,116750.0,116740.0,2.67520821]
[1754625700256,0.21834522,116750.0,116740.0,2.84652909]
[1754625700456,0.21934522,116750.0,116740.0,2.84652909]
[1754625700658,0.22034522,116750.0,116740.0,2.52960457]
[1754625700967,0.22034522,116750.0,116740.0,2.84652909]
[1754625701519,0.22034522,116750.0,116740.0,2.67520821]
[1754625702432,0.22034522,116750.0,116740.0,2.84652909]
[1754625703045,0.22034522,116750.0,116740.0,2.71204909]
[1754625703195,0.22034522,116750.0,116740.0,2.84656909]
[1754625703602,0.22034522,116750.0,116740.0,2.67524821]
[1754625704185,0.22034522,116750.0,116740.0,2.35832369]
[1754625704400,0.22034522,116750.0,116740.0,2.54072821]
[1754625704784,0.22034522,116750.0,116740.0,2.67524821]
[1754625705500,0.22034522,116750.0,116740.0,2.84656909]
[1754625706410,0.22034522,116750.0,116740.0,2.52964457]
[1754625706623,0.22034522,116750.0,116740.0,2.84656909]
[1754625708269,0.22034522,116750.0,116740.0,2.67524821]
[1754625709116,0.22034522,116750.0,116740.0,2.35832369]
[1754625709325,0.22034522,116750.0,116740.0,2.67524821]
[1754625709776,0.22034522,116750.0,116740.0,2.54072821]
[1754625710086,0.22034522,116750.0,116740.0,2.67520821]
[1754625710401,0.22034522,116750.0,116740.0,2.54072821]
[1754625710611,0.22034522,116750.0,116740.0,2.22380369]
[1754625710810,0.22034522,116750.0,116740.0,2.35824369]
[1754625710958,0.22034522,116750.0,116740.0,2.67516821]
[1754625712085,0.22034522,116750.0,116740.0,2.84860909]
[1754625713349,0.22034522,116750.0,116740.0,2.87202909]
[1754625713832,0.22034522,116750.0,116740.0,2.38378369]
[1754625713968,0.22034522,116750.0,116740.0,2.70070821]
[1754625717034,0.22034522,116750.0,116740.0,2.54284821]
[1754625717247,0.22034522,116750.0,116740.0,2.67728821]
[1754625717970,0.22034522,116750.0,116740.0,2.54284821]
[1754625718163,0.22034522,116750.0,116740.0,2.67724821]
[1754625719777,0.22034522,116750.0,116740.0,2.36032369]
[1754625720376,0.22034522,116750.0,116740.0,2.53164457]
[1754625720988,0.22034522,116750.0,116740.0,2.36032369]
[1754625721192,0.22034522,116750.0,116740.0,2.24934369]
[1754625721409,0.22034522,116750.0,116740.0,2.22592369]
[1754625721627,0.22034522,116750.0,116740.0,2.36024369]
[1754625722016,0.22034522,116750.0,116740.0,2.22380369]
[1754625722221,0.22034522,116750.0,116740.0,2.12126158]
[1754625722432,0.53726974,116750.0,116740.0,2.12126158]
[1754625724092,0.53626974,116750.0,116740.0,2.12126158]
[1754625724317,0.53526974,116750.0,116740.0,2.12126158]
[1754625724511,0.53526974,116750.0,116740.0,2.12326158]
[1754625727625,0.53526974,116750.0,116740.0,1.98894158]
[1754625727812,0.62206399,116750.0,116740.0,1.98042]
[1754625727954,0.62206399,116750.0,116740.0,2.1147]
[1754625728566,0.62206399,116750.0,116740.0,2.11466]
[1754625729192,0.62206399,116750.0,116740.0,1.98042]
[1754625729614,0.62206399,116750.0,116740.0,2.11462]
[1754625730097,0.62206399,116750.0,116740.0,1.98042]
[1754625730282,0.62206399,116750.0,116740.0,2.11462]
[1754625730752,0.75626399,116750.0,116740.0,1.98042]
[1754625730967,0.75626399,116750.0,116740.0,2.11458]
[1754625731190,0.75626399,116750.0,116740.0,2.11258]
[1754625731818,0.75626399,116750.0,116740.0,2.10698642]
[1754625732537,0.75726399,116750.0,116740.0,1.97482642]
[1754625732688,0.75726399,116750.0,116740.0,2.11194642]
[1754625733051,0.75726399,116750.0,116740.0,1.97782642]
[1754625733187,0.75726399,116750.0,116740.0,2.11194642]
[1754625734082,0.44033947,116750.0,116740.0,1.97782642]
[1754625734299,0.75726399,116750.0,116740.0,1.97782642]
[1754625734715,0.78298199,116750.0,116740.0,1.97782642]
[1754625734928,0.46605747,116750.0,116740.0,1.97782642]
[1754625735199,0.78298199,116750.0,116740.0,1.97782642]
[1754625735542,0.46605747,116750.0,116740.0,1.97782642]
[1754625735730,0.78298199,116750.0,116740.0,1.97782642]
[1754625736035,0.78298199,116750.0,116740.0,2.11190642]
[1754625736890,0.46605747,116750.0,116740.0,2.11190642]
[1754625737114,0.78298199,116750.0,116740.0,2.11190642]
[1754625737526,0.33185747,116750.0,116740.0,2.11190642]
[1754625737734,0.64878199,116750.0,116740.0,2.11190642]
[1754625738899,0.33185747,116750.0,116740.0,2.11190642]
[1754625739110,0.64878199,116750.0,116740.0,2.11190642]
[1754625739578,0.33185747,116750.0,116740.0,2.11190642]
[1754625739940,0.64878199,116750.0,116740.0,2.11190642]
[1754625740352,0.33185747,116750.0,116740.0,2.11190642]
[1754625740562,0.64878199,116750.0,116740.0,2.11190642]
[1754625740731,0.33185747,116750.0,116740.0,2.11190642]
[1754625740936,0.62306399,116750.0,116740.0,2.11190642]
[1754625742960,0.64878199,116750.0,116740.0,2.11190642]
[1754625745175,0.64878199,116750.0,116740.0,1.97782642]
[1754625745998,0.78294199,116750.0,116740.0,1.97782642]
[1754625747168,0.46601747,116750.0,116740.0,1.97782642]
[1754625747395,0.78294199,116750.0,116740.0,2.11198642]
[1754625748219,0.46601747,116750.0,116740.0,2.11198642]
[1754625748358,0.78294199,116750.0,116740.0,2.11198642]
[1754625749233,0.78294199,116750.0,116740.0,1.97782642]
[1754625756242,0.46601747,116750.0,116740.0,1.97782642]
[1754625756399,0.78294199,116750.0,116740.0,1.97782642]
[1754625757367,0.78294199,116750.0,116740.0,2.11174642]
[1754625757780,0.46601747,116750.0,116740.0,2.11174642]
[1754625757959,0.78294199,116750.0,116740.0,2.11174642]
[1754625759794,0.78294199,116750.0,116740.0,2.11166642]
[1754625760223,0.78294199,116750.0,116740.0,1.97995642]
[1754625760425,0.78294199,116750.0,116740.0,2.13747642]
[1754625760852,0.78294199,116750.0,116740.0,2.00363642]
[1754625761416,0.78294199,116750.0,116740.0,2.13743642]
[1754625764690,0.21547322,116750.0,116740.0,2.77394546]
[1754625764932,0.001,116750.0,116740.0,2.94526634]
[1754625765170,0.01844902,116750.0,116740.0,2.94526634]
[1754625765398,0.001,116750.0,116740.0,2.94526634]
[1754625765864,0.001,116750.0,116740.0,2.3114173]
[1754625766090,0.01844902,116750.0,116740.0,3.14526634]
[1754625766311,0.01744902,116750.0,116740.0,2.82634182]
[1754625766520,0.01744902,116750.0,116740.0,2.91020393]
[1754625766735,0.01844902,116750.0,116740.0,2.91220393]
[1754625767766,0.01844902,116750.0,116740.0,2.59527941]
[1754625767992,0.01844902,116750.0,116740.0,2.91220393]
[1754625768429,0.01744902,116750.0,116740.0,2.59327941]
[1754625768631,0.01744902,116750.0,116740.0,2.91020393]
[1754625768864,0.01744902,116750.0,116740.0,2.59327941]
[1754625769308,0.01744902,116750.0,116740.0,2.59527941]
[1754625769514,0.01744902,116750.0,116740.0,2.91220393]
[1754625770470,0.01744902,116750.0,116740.0,2.91320393]
[1754625770942,0.01744902,116750.0,116740.0,2.59627941]
[1754625771162,0.01744902,116750.0,116740.0,2.91320393]
[1754625772096,0.01744902,116750.0,116740.0,2.59627941]
[1754625772319,0.01744902,116750.0,116740.0,2.91320393]
[1754625772982,0.01744902,116750.0,116740.0,2.59627941]
[1754625773172,0.01744902,116750.0,116740.0,2.91320393]
[1754625778113,0.01744902,116750.0,116740.0,2.77940393]
[1754625778323,0.33437354,116750.0,116740.0,2.45981941]
[1754625778567,0.53326974,116750.0,116740.0,2.3471473]
[1754625778775,0.62006399,116750.0,116740.0,2.4825873]
[1754625778982,0.62006399,116750.0,116740.0,2.31126642]
[1754625779182,0.30313947,116750.0,116740.0,2.11126642]
[1754625779384,0.62006399,116750.0,116740.0,2.11126642]
[1754625780266,0.18875522,116750.0,116740.0,2.62543182]
[1754625780493,0.21634522,116750.0,116740.0,2.60158182]
[1754625780728,0.21634522,116750.0,116740.0,2.2846573]
[1754625781140,0.53326974,116750.0,116740.0,2.2846573]
[1754625782953,0.53326974,116750.0,116740.0,2.11126642]
[1754625783167,0.62006399,116750.0,116740.0,1.97582642]
[1754625783380,0.62006399,116750.0,116740.0,2.11114642]
[1754625783598,0.62006399,116750.0,116740.0,2.11110642]
[1754625783821,0.30313947,116750.0,116740.0,1.97582642]
[1754625784042,0.93698851,116750.0,116740.0,1.97582642]
[1754625785587,0.62006399,116750.0,116740.0,1.97582642]
[1754625785827,0.62006399,116750.0,116740.0,1.97382642]
[1754625786161,0.62006399,116750.0,116740.0,1.97582642]
[1754625787129,0.64578399,116750.0,116740.0,1.97482642]
[1754625787336,0.64578399,116750.0,116740.0,1.97582642]
[1754625787972,0.32885947,116750.0,116740.0,1.97582642]
[1754625788178,0.64578399,116750.0,116740.0,1.97582642]
[1754625789781,0.32885947,116750.0,116740.0,1.97582642]
[1754625789938,0.64578399,116750.0,116740.0,1.97582642]
[1754625791819,0.32885947,116750.0,116740.0,1.97582642]
[1754625792033,0.64578399,116750.0,116740.0,1.97582642]
[1754625792565,0.97111925,116750.0,116740.0,1.97582642]
[1754625793778,0.65419473,116750.0,116740.0,1.97582642]
[1754625794388,0.62847473,116750.0,116740.0,1.97582642]
[1754625799609,0.31155021,116750.0,116740.0,1.97582642]
[1754625799849,0.62847473,116750.0,116740.0,1.97582642]
[1754625802495,0.31155021,116750.0,116740.0,1.97582642]
[1754625802677,0.62847473,116750.0,116740.0,1.97582642]
[1754625802996,0.94539925,116750.0,116740.0,1.97582642]
[1754625803208,0.92281925,116750.0,116740.0,1.97793642]
[1754625803416,0.59247399,116750.0,116740.0,2.13557642]
[1754625803794,0.59247399,116750.0,116740.0,2.00073642]
[1754625804020,0.27554947,116750.0,116740.0,2.00073642]
[1754625804227,0.59247399,116750.0,116740.0,2.00073642]
[1754625805607,0.59247399,116750.0,116740.0,2.13553642]
[1754625806029,0.61726399,116750.0,116740.0,2.13553642]
[1754625806689,0.61726399,116750.0,116740.0,2.00073642]
[1754625806902,0.62036399,116750.0,116740.0,2.00073642]
[1754625807112,0.62250399,116750.0,116740.0,2.00073642]
[1754625808152,0.30557947,116750.0,116740.0,2.00073642]
[1754625808356,0.62250399,116750.0,116740.0,2.00073642]
[1754625809104,0.30557947,116750.0,116740.0,2.00073642]
[1754625809307,0.62250399,116750.0,116740.0,2.00073642]
[1754625810139,0.30557947,116750.0,116740.0,2.00073642]
[1754625810351,0.62250399,116750.0,116740.0,2.00073642]
[1754625810897,0.62250399,116750.0,116740.0,1.99862642]
[1754625811108,0.62250399,116750.0,116740.0,1.97582642]
[1754625813076,0.30557947,116750.0,116740.0,1.97582642]
[1754625813291,0.62250399,116750.0,116740.0,1.97793642]
[1754625814032,0.62250399,116750.0,116740.0,2.00073642]
[1754625814226,0.62250399,116750.0,116740.0,1.97793642]
[1754625815358,0.75722399,116750.0,116740.0,1.97793642]
[1754625816017,0.75722399,116750.0,116740.0,1.97582642]
[1754625821441,0.44029947,116750.0,116740.0,1.97582642]
[1754625821671,1.07414851,116750.0,116740.0,1.97582642]
[1754625821891,0.75722399,116750.0,116740.0,1.97582642]
[1754625822621,0.44029947,116750.0,116740.0,1.97582642]
[1754625822808,0.75722399,116750.0,116740.0,1.97582642]
[1754625823018,0.44029947,116750.0,116740.0,1.97582642]
[1754625823222,0.75722399,116750.0,116740.0,1.97582642]
[1754625823618,0.44029947,116750.0,116740.0,1.97582642]
[1754625823795,0.75722399,116750.0,116740.0,1.97582642]
[1754625825301,1.07414851,116750.0,116740.0,1.97582642]
[1754625825941,0.44029947,116750.0,116740.0,1.97582642]
[1754625826163,0.75722399,116750.0,116740.0,1.97582642]
[1754625827272,1.16101062,116750.0,116740.0,1.97582642]
[1754625828092,1.16101062,116750.0,116740.0,1.97781642]
[1754625828332,0.72695399,116750.0,116740.0,2.00262642]
[1754625828514,0.72695399,116750.0,116740.0,2.00528642]
[1754625829423,0.74957399,116750.0,116740.0,2.00262642]
[1754625829726,0.43759947,116750.0,116740.0,2.00262642]
[1754625829931,0.72695399,116750.0,116740.0,2.00262642]
[1754625830363,0.72695399,116750.0,116740.0,2.13710642]
[1754625831631,0.75256399,116750.0,116740.0,2.13710642]
[1754625831840,0.75452399,116750.0,116740.0,1.97781642]
[1754625832542,0.75452399,116750.0,116740.0,1.97582642]
[1754625833531,0.75452399,116750.0,116740.0,1.97781642]
[1754625839447,0.62004399,116750.0,116740.0,1.97781642]
[1754625839702,0.75436399,116750.0,116740.0,1.97781642]
[1754625840402,0.75436399,116750.0,116740.0,1.97582642]
[1754625840656,1.81507514,116750.0,116740.0,1.97582642]